Workbook

Sheet Read_me
A1: Original von: https://www.controllingportal.de/Marktplatz/Excel-Tools/Gemeinkostenumlage.html
A2: Heruntergeladen am: 20/01/2018 11:21:00
A4: 1. Original war fehlerhaft: 2_Umlage!C11 muss korrekt lauten: ='1_Umlage'!J28
A5: 2. Die Grafik gemeinkostenumlage-1.gif auf der Seite https://www.controllingportal.de/Marktplatz/Excel-Tools/Gemeinkostenumlage.html zeigt auch den falschen Wert 625.
A6: 3. Die vorliegende Rechnung korrigiert diesen Fehler und rechnet korrekt auf den Cent genau so dass die gerundete Summe der einzelnen Summanden auch wirklich der Summe der gerundeten Summanden entspricht.
A7: 4. Damit kann diese Gemeinkostenumlage auch in der Praxis mit Buchungssystemen verwendet werden.
A9: Bernd Plumhoff
A10: 2020-07-25T16:40:00

Sheet Schlüssel
A2: Umlage 1 - Kst.- Gemeinkosten auf alle anderen KSt.
C3: allg. Kostenstellen | K3: Hilfskostenstellen | N3: Hauptkostenstellen
A4: Schlüsselbezeichnung | B4: Gesamt | C4: GF | D4: Sekretariat | E4: RW | F4: Controlling | G4: Personal | H4: ÖA/Werbung | I4: Auszub. | J4: Betriebsrat | K4: Werkstatt 1 | L4: Werkstatt 2 | M4: Fuhrpark | N4: Fertigung1 | O4: Fertigung2 | P4: Fertigung3
A5: pro Kopf | B5: =SUM(C5:P5) -> 102 | C5: 1 | D5: 1 | E5: 3 | F5: 1 | G5: 2 | H5: 3 | I5: 3 | J5: 1 | K5: 12 | L5: 10 | N5: 20 | O5: 20 | P5: 25
A6: m² | B6: =SUM(C6:P6) -> 2685 | C6: 50 | D6: 40 | E6: 100 | F6: 30 | G6: 50 | H6: 50 | J6: 15 | K6: 250 | L6: 350 | M6: 100 | N6: 500 | O6: 550 | P6: 600
A7: gleich | B7: =SUM(C7:P7) -> 14 | C7: 1 | D7: 1 | E7: 1 | F7: 1 | G7: 1 | H7: 1 | I7: 1 | J7: 1 | K7: 1 | L7: 1 | M7: 1 | N7: 1 | O7: 1 | P7: 1
A8: Gewichtung | B8: =SUM(C8:P8) -> 16 | C8: 2 | D8: 1 | E8: 1 | F8: 1 | G8: 1 | H8: 2 | I8: 1 | J8: 1 | K8: 1 | L8: 1 | M8: 1 | N8: 1 | O8: 1 | P8: 1
A11: Umlage 2 - allg. KSt. und Hilfskostenstellen auf Hauptkostenstellen
A14: umzulegende KSt. | B14: Schlüssel | C14: Fertigung1 | D14: Fertigung2 | E14: Fertigung3 | F14: Gesamt
A16: GF | B16: Gewichtung | C16: 0.3 | D16: 0.4 | E16: 0.3 | F16: =SUM(C16:E16) -> 1
A17: Sekretariat | B17: Gewichtung | C17: 0.4 | D17: 0.5 | E17: 0.1 | F17: 1
A18: RW | B18: Gewichtung | C18: 0.3 | D18: 0.13 | E18: 0.57 | F18: 1
A19: Controlling | B19: gleich | C19: 1 | D19: 1 | E19: 1 | F19: 3
A20: Personal | B20: pro Kopf | C20: 20 | D20: 20 | E20: 25 | F20: 65
A21: ÖA/Werbung | B21: Gewichtung | C21: 0.3 | D21: 0.42 | E21: 0.28 | F21: 1
A22: Auszub. | B22: gleich | C22: 1 | D22: 1 | E22: 1 | F22: 3
A23: Betriebsrat | B23: pro Kopf | C23: 20 | D23: 20 | E23: 25 | F23: 65
A24: Werkstatt 1 | B24: Gewichtung | C24: 0.25 | D24: 0.2 | E24: 0.55 | F24: 1
A25: Werkstatt 2 | B25: Gewichtung | C25: 0.2 | D25: 0.2 | E25: 0.6 | F25: 1
A26: Fuhrpark | B26: Gewichtung | C26: 0.4 | D26: 0.3 | E26: 0.3 | F26: 1

Sheet 1_Umlage
A1: Umlage der Kostenstellengemeinkosten auf alle Kostenstellen
D3: Verwaltungskostenstellen | L3: Hilfskostenstellen | O3: Hauptkostenstellen | R3: Gesamt
A4: Bezeichnung | B4: Schlüssel | C4: KSt.- Gemeinkosten | D4: GF | E4: Sekretariat | F4: RW | G4: Controlling | H4: Personal | I4: ÖA/Werbung | J4: Auszub. | K4: Betriebsrat | L4: Werkstatt 1 | M4: Werkstatt 2 | N4: Fuhrpark | O4: Fertigung1 | P4: Fertigung2 | Q4: Fertigung3
A5: Reise- u. Übernachtung | B5: Gewichtung | C5: 10000 | D5: =RoundToSum($C5/Schlüssel!$B$8*Schlüssel!C$8:P$8) -> 1250 | E5: 625 | F5: 625 | G5: 625 | H5: 625 | I5: 1250 | J5: 625 | K5: 625 | L5: 625 | M5: 625 | N5: 625 | O5: 625 | P5: 625 | Q5: 625 | R5: =SUM(D5:Q5) -> 10000
A6: Aufw. Aufsichtsrat | B6: gleich | C6: 3000 | D6: =RoundToSum($C6/Schlüssel!$B$7*Schlüssel!C$7:P$7) -> 214.28 | E6: 214.28 | F6: 214.28 | G6: 214.28 | H6: 214.28 | I6: 214.28 | J6: 214.29 | K6: 214.29 | L6: 214.29 | M6: 214.29 | N6: 214.29 | O6: 214.29 | P6: 214.29 | Q6: 214.29 | R6: 3000
A7: Bewirtung | B7: Gewichtung | C7: 2000 | D7: =RoundToSum($C7/Schlüssel!$B$8*Schlüssel!C$8:P$8) -> 250 | E7: 125 | F7: 125 | G7: 125 | H7: 125 | I7: 250 | J7: 125 | K7: 125 | L7: 125 | M7: 125 | N7: 125 | O7: 125 | P7: 125 | Q7: 125 | R7: 2000
A8: Geschenke | B8: Gewichtung | C8: 1000 | D8: =RoundToSum($C8/Schlüssel!$B$8*Schlüssel!C$8:P$8) -> 125 | E8: 62.5 | F8: 62.5 | G8: 62.5 | H8: 62.5 | I8: 125 | J8: 62.5 | K8: 62.5 | L8: 62.5 | M8: 62.5 | N8: 62.5 | O8: 62.5 | P8: 62.5 | Q8: 62.5 | R8: 1000
A9: Gebühren, Beiträge | B9: gleich | C9: 500 | D9: =RoundToSum($C9/Schlüssel!$B$7*Schlüssel!C$7:P$7) -> 35.72 | E9: 35.72 | F9: 35.72 | G9: 35.72 | H9: 35.72 | I9: 35.72 | J9: 35.71 | K9: 35.71 | L9: 35.71 | M9: 35.71 | N9: 35.71 | O9: 35.71 | P9: 35.71 | Q9: 35.71 | R9: 500
A10: Kfz-Kosten | B10: Gewichtung | C10: 4500 | D10: =RoundToSum($C10/Schlüssel!$B$8*Schlüssel!C$8:P$8) -> 562.5 | E10: 281.25 | F10: 281.25 | G10: 281.25 | H10: 281.25 | I10: 562.5 | J10: 281.25 | K10: 281.25 | L10: 281.25 | M10: 281.25 | N10: 281.25 | O10: 281.25 | P10: 281.25 | Q10: 281.25 | R10: 4500
A11: Geräte Ausstattungsgegens | B11: Gewichtung | C11: 200 | D11: =RoundToSum($C11/Schlüssel!$B$8*Schlüssel!C$8:P$8) -> 25 | E11: 12.5 | F11: 12.5 | G11: 12.5 | H11: 12.5 | I11: 25 | J11: 12.5 | K11: 12.5 | L11: 12.5 | M11: 12.5 | N11: 12.5 | O11: 12.5 | P11: 12.5 | Q11: 12.5 | R11: 200
A12: Prüfungen Jahresabschl. | B12: gleich | C12: 10000 | D12: =RoundToSum($C12/Schlüssel!$B$7*Schlüssel!C$7:P$7) -> 714.28 | E12: 714.28 | F12: 714.28 | G12: 714.28 | H12: 714.28 | I12: 714.28 | J12: 714.29 | K12: 714.29 | L12: 714.29 | M12: 714.29 | N12: 714.29 | O12: 714.29 | P12: 714.29 | Q12: 714.29 | R12: 10000
A13: sonst. Bewirtschaftungsk. | B13: m² | C13: 5500 | D13: =RoundToSum($C13/Schlüssel!$B$6*Schlüssel!C$6:P$6) -> 102.42 | E13: 81.94 | F13: 204.84 | G13: 61.45 | H13: 102.42 | I13: 102.42 | J13: 0 | K13: 30.73 | L13: 512.1 | M13: 716.95 | N13: 204.84 | O13: 1024.21 | P13: 1126.63 | Q13: 1229.05 | R13: 5500
A14: Energiekosten | B14: m² | C14: 6000 | D14: =RoundToSum($C14/Schlüssel!$B$6*Schlüssel!C$6:P$6) -> 111.73 | E14: 89.39 | F14: 223.47 | G14: 67.04 | H14: 111.73 | I14: 111.73 | J14: 0 | K14: 33.52 | L14: 558.66 | M14: 782.12 | N14: 223.46 | O14: 1117.32 | P14: 1229.05 | Q14: 1340.78 | R14: 6000
A15: Versicherungen | B15: pro Kopf | C15: 5000 | D15: =RoundToSum($C15/Schlüssel!$B$5*Schlüssel!C$5:P$5) -> 49.02 | E15: 49.02 | F15: 147.06 | G15: 49.02 | H15: 98.04 | I15: 147.06 | J15: 147.06 | K15: 49.02 | L15: 588.23 | M15: 490.2 | N15: 0 | O15: 980.39 | P15: 980.39 | Q15: 1225.49 | R15: 5000
A16: Rechts-, Beratungskosten | B16: Gewichtung | C16: 5000 | D16: =RoundToSum($C16/Schlüssel!$B$8*Schlüssel!C$8:P$8) -> 625 | E16: 312.5 | F16: 312.5 | G16: 312.5 | H16: 312.5 | I16: 625 | J16: 312.5 | K16: 312.5 | L16: 312.5 | M16: 312.5 | N16: 312.5 | O16: 312.5 | P16: 312.5 | Q16: 312.5 | R16: 5000
A17: Buchführungskosten | B17: Gewichtung | C17: 1000 | D17: =RoundToSum($C17/Schlüssel!$B$8*Schlüssel!C$8:P$8) -> 125 | E17: 62.5 | F17: 62.5 | G17: 62.5 | H17: 62.5 | I17: 125 | J17: 62.5 | K17: 62.5 | L17: 62.5 | M17: 62.5 | N17: 62.5 | O17: 62.5 | P17: 62.5 | Q17: 62.5 | R17: 1000
A18: Bürobedarf | B18: Gewichtung | C18: 2000 | D18: =RoundToSum($C18/Schlüssel!$B$8*Schlüssel!C$8:P$8) -> 250 | E18: 125 | F18: 125 | G18: 125 | H18: 125 | I18: 250 | J18: 125 | K18: 125 | L18: 125 | M18: 125 | N18: 125 | O18: 125 | P18: 125 | Q18: 125 | R18: 2000
A19: Telekommunikation | B19: Gewichtung | C19: 2500 | D19: =RoundToSum($C19/Schlüssel!$B$8*Schlüssel!C$8:P$8) -> 312.5 | E19: 156.25 | F19: 156.25 | G19: 156.25 | H19: 156.25 | I19: 312.5 | J19: 156.25 | K19: 156.25 | L19: 156.25 | M19: 156.25 | N19: 156.25 | O19: 156.25 | P19: 156.25 | Q19: 156.25 | R19: 2500
A20: Aufw. f. Versand | B20: Gewichtung | C20: 2000 | D20: =RoundToSum($C20/Schlüssel!$B$8*Schlüssel!C$8:P$8) -> 250 | E20: 125 | F20: 125 | G20: 125 | H20: 125 | I20: 250 | J20: 125 | K20: 125 | L20: 125 | M20: 125 | N20: 125 | O20: 125 | P20: 125 | Q20: 125 | R20: 2000
A21: Bücher, Zeitschriften | B21: Gewichtung | C21: 1000 | D21: =RoundToSum($C21/Schlüssel!$B$8*Schlüssel!C$8:P$8) -> 125 | E21: 62.5 | F21: 62.5 | G21: 62.5 | H21: 62.5 | I21: 125 | J21: 62.5 | K21: 62.5 | L21: 62.5 | M21: 62.5 | N21: 62.5 | O21: 62.5 | P21: 62.5 | Q21: 62.5 | R21: 1000
A22: Nebenk. d. Geldverkehrs | B22: Gewichtung | C22: 500 | D22: =RoundToSum($C22/Schlüssel!$B$8*Schlüssel!C$8:P$8) -> 62.5 | E22: 31.25 | F22: 31.25 | G22: 31.25 | H22: 31.25 | I22: 62.5 | J22: 31.25 | K22: 31.25 | L22: 31.25 | M22: 31.25 | N22: 31.25 | O22: 31.25 | P22: 31.25 | Q22: 31.25 | R22: 500
A23: Schadensersatz | B23: gleich | C23: 250 | D23: =RoundToSum($C23/Schlüssel!$B$7*Schlüssel!C$7:P$7) -> 17.85 | E23: 17.85 | F23: 17.85 | G23: 17.85 | H23: 17.86 | I23: 17.86 | J23: 17.86 | K23: 17.86 | L23: 17.86 | M23: 17.86 | N23: 17.86 | O23: 17.86 | P23: 17.86 | Q23: 17.86 | R23: 250
A24: Berufsbekleidung | B24: Gewichtung | C24: 1500 | D24: =RoundToSum($C24/Schlüssel!$B$8*Schlüssel!C$8:P$8) -> 187.5 | E24: 93.75 | F24: 93.75 | G24: 93.75 | H24: 93.75 | I24: 187.5 | J24: 93.75 | K24: 93.75 | L24: 93.75 | M24: 93.75 | N24: 93.75 | O24: 93.75 | P24: 93.75 | Q24: 93.75 | R24: 1500
A25: Ausgleichsabgabe Schwerbe | B25: gleich | C25: 2000 | D25: =RoundToSum($C25/Schlüssel!$B$7*Schlüssel!C$7:P$7) -> 142.85 | E25: 142.85 | F25: 142.85 | G25: 142.85 | H25: 142.86 | I25: 142.86 | J25: 142.86 | K25: 142.86 | L25: 142.86 | M25: 142.86 | N25: 142.86 | O25: 142.86 | P25: 142.86 | Q25: 142.86 | R25: 2000
A26: Fort- u. Weiterbildung | B26: Gewichtung | C26: 2000 | D26: =RoundToSum($C26/Schlüssel!$B$8*Schlüssel!C$8:P$8) -> 250 | E26: 125 | F26: 125 | G26: 125 | H26: 125 | I26: 250 | J26: 125 | K26: 125 | L26: 125 | M26: 125 | N26: 125 | O26: 125 | P26: 125 | Q26: 125 | R26: 2000
A27: Sonstige Betriebl. Aufw. | B27: Gewichtung | C27: 1500 | D27: =RoundToSum($C27/Schlüssel!$B$8*Schlüssel!C$8:P$8) -> 187.5 | E27: 93.75 | F27: 93.75 | G27: 93.75 | H27: 93.75 | I27: 187.5 | J27: 93.75 | K27: 93.75 | L27: 93.75 | M27: 93.75 | N27: 93.75 | O27: 93.75 | P27: 93.75 | Q27: 93.75 | R27: 1500
A28: Gesamt (gerundete Summe) | C28: =SUM(C5:C27) -> 68950 | D28: =SUM(D5:D27) -> 5975.65 | E28: =SUM(E5:E27) -> 3639.08 | F28: 3994.1 | G28: 3596.24 | H28: 3730.94 | I28: 6073.71 | J28: 3565.82 | K28: 3532.03 | L28: 5077.75 | M28: 5408.03 | N28: 3847.06 | O28: 6540.68 | P28: 6754.83 | Q28: 7214.08 | R28: =SUM(D28:Q28) -> 68950
Q30: Kontrolle | R30: =R28-C28 -> 0

Sheet 2_Umlage
A1: Umlage der allgemeinen Kostenstellen und Hilfskostenstellen auf die Hauptkostenstellen
A3: umzulegende KSt. | B3: KST- Einzel-kosten | C3: Umlage 1 | D3: Gesamt | E3: Fertigung1 | F3: Fertigung2 | G3: Fertigung3 | H3: Gesamt
A5: GF | B5: 111666 | C5: =TRANSPOSE('1_Umlage'!D28:N28) -> 5975.65 | D5: =SUM(B5:C5) -> 117641.65 | E5: =RoundToSum($D5/Schlüssel!$F16*Schlüssel!C16:E16) -> 35292.49 | F5: 47056.66 | G5: 35292.5 | H5: =SUM(E5:G5) -> 117641.65
A6: Sekretariat | B6: 34627 | C6: 3639.08 | D6: =SUM(B6:C6) -> 38266.08 | E6: =RoundToSum($D6/Schlüssel!$F17*Schlüssel!C17:E17) -> 15306.43 | F6: 19133.04 | G6: 3826.61 | H6: =SUM(E6:G6) -> 38266.08
A7: RW | B7: 96834 | C7: 3994.1 | D7: 100828.1 | E7: =RoundToSum($D7/Schlüssel!$F18*Schlüssel!C18:E18) -> 30248.43 | F7: 13107.65 | G7: 57472.02 | H7: 100828.1
A8: Controlling | B8: 83875 | C8: 3596.24 | D8: 87471.24 | E8: =RoundToSum($D8/Schlüssel!$F19*Schlüssel!C19:E19) -> 29157.08 | F8: 29157.08 | G8: 29157.08 | H8: 87471.24
A9: Personal | B9: 53765 | C9: 3730.94 | D9: 57495.94 | E9: =RoundToSum($D9/Schlüssel!$F20*Schlüssel!C20:E20) -> 17691.06 | F9: 17691.06 | G9: 22113.82 | H9: 57495.94
A10: ÖA/Werbung | B10: 239170 | C10: 6073.71 | D10: 245243.71 | E10: =RoundToSum($D10/Schlüssel!$F21*Schlüssel!C21:E21) -> 73573.11 | F10: 103002.36 | G10: 68668.24 | H10: 245243.71
A11: Auszub. | B11: 147397 | C11: 3565.82 | D11: 150962.82 | E11: =RoundToSum($D11/Schlüssel!$F22*Schlüssel!C22:E22) -> 50320.94 | F11: 50320.94 | G11: 50320.94 | H11: 150962.82
A12: Betriebsrat | B12: 471 | C12: 3532.03 | D12: 4003.03 | E12: =RoundToSum($D12/Schlüssel!$F23*Schlüssel!C23:E23) -> 1231.7 | F12: 1231.7 | G12: 1539.63 | H12: 4003.03
A13: Werkstatt 1 | B13: 125225 | C13: 5077.75 | D13: 130302.75 | E13: =RoundToSum($D13/Schlüssel!$F24*Schlüssel!C24:E24) -> 32575.69 | F13: 26060.55 | G13: 71666.51 | H13: 130302.75
A14: Werkstatt 2 | B14: 2398512 | C14: 5408.03 | D14: 2403920.03 | E14: =RoundToSum($D14/Schlüssel!$F25*Schlüssel!C25:E25) -> 480784 | F14: 480784.01 | G14: 1442352.02 | H14: 2403920.03
A15: Fuhrpark | B15: 26992 | C15: 3847.06 | D15: 30839.06 | E15: =RoundToSum($D15/Schlüssel!$F26*Schlüssel!C26:E26) -> 12335.62 | F15: 9251.72 | G15: 9251.72 | H15: 30839.06
A16: 1. Umlage | E16: ='1_Umlage'!O28 -> 6540.68 | F16: ='1_Umlage'!P28 -> 6754.83 | G16: ='1_Umlage'!Q28 -> 7214.08 | H16: =SUM(E16:G16) -> 20509.59
A17: 2. Umlage | B17: =SUM(B5:B15) -> 3318534 | C17: 48440.41 | D17: 3366974.41 | E17: 778516.55 | F17: 796796.77 | G17: 1791661.09 | H17: 3366974.41
A18: KSt. - Einzelkosten | E18: 738060 | F18: 854000 | G18: 650360 | H18: =SUM(E18:G18) -> 2242420
A19: Gesamt Haupkostenstellen | E19: =SUM(E16:E18) -> 1523117.23 | F19: =SUM(F16:F18) -> 1657551.6 | G19: =SUM(G16:G18) -> 2449235.17 | H19: =SUM(H16:H18) -> 5629904 | J19: Kontrolle | K19: =H19-SUM(E18:G18)-SUM(B5:B15)-SUM('1_Umlage'!C5:C27) -> 0
A21: Gemeinkostenzuschlagssatz | E21: =(E17+E16)/E18 -> 1.063676707 | F21: =(F17+F16)/F18 -> 0.9409269321 | G21: =(G17+G16)/G18 -> 2.765968341 | H21: =(H17+H16)/H18 -> 1.510637615

Sheet Wiederhergestellt_Tabelle1 (hidden)
